bitfinex/quotes_SOLUSD_20251007
["timestamp","ask_amount","ask_price","bid_price","bid_amount"]
[1759829973712,0.68,230.26,230.22,0.67]
[1759829973917,4.34291224,230.27,230.22,0.67]
[1759829974133,10.85634879,230.28,230.22,0.67]
[1759829974312,0.68,230.27,230.22,0.67]
[1759829975218,4.3429167,230.26,230.22,0.67]
[1759829976130,4.3429167,230.26,230.21,34.70379276]
[1759829976331,0.68,230.27,230.23,0.67]
[1759829976332,5.02274326,230.27,230.23,0.67]
[1759829977134,5.02274326,230.27,230.21,31.03]
[1759829977512,5.02274326,230.27,230.21,35.37384379]
[1759829978034,4.34274326,230.27,230.22,0.66]
[1759829978739,0.72,230.3,230.22,0.66]
[1759829978919,0.72,230.33,230.23,10.87647521]
[1759829979117,21.52,230.33,230.24,0.66]
[1759829979313,25.86164677,230.33,230.25,4.34310532]
[1759829979520,20.8,230.33,230.26,31.02]
[1759829979823,4.34162558,230.33,230.27,0.66]
[1759829980340,25.86136992,230.35,230.27,0.66]
[1759829980538,36.71441962,230.35,230.27,0.66]
[1759829983160,36.71441962,230.35,230.26,30.36]
[1759829983324,0.72,230.34,230.26,30.36]
[1759829983523,0.72,230.33,230.26,30.36]
[1759829983739,0.72,230.33,230.26,31.02]
[1759829984439,35.99441962,230.35,230.26,31.02]
[1759829984640,0.72,230.32,230.26,31.02]
[1759829984947,4.34197386,230.31,230.27,30.34]
[1759829985156,4.34197386,230.31,230.28,30.34]
[1759829985655,4.34197386,230.31,230.28,31.0]
[1759829986350,5.06181156,230.32,230.28,31.0]
[1759829986735,4.34158979,230.34,230.28,30.34]
[1759829986933,5.06158979,230.34,230.29,0.66]
[1759829987530,5.06158979,230.34,230.28,34.68250146]
[1759829987738,5.06158979,230.34,230.29,0.66]
[1759829987961,5.06158979,230.34,230.3,0.66]
[1759829988745,0.72,230.33,230.28,34.68252154]
[1759829988947,5.06169294,230.33,230.28,34.68252154]
[1759829989156,5.06169294,230.33,230.29,0.66]
[1759829989533,0.72,230.32,230.28,30.34]
[1759829989856,4.34169294,230.33,230.24,10.85791872]
[1759829989857,0.72,230.31,230.29,30.32]
[1759829990026,0.72,230.3,230.29,30.32]
[1759829990227,15.19568503,230.33,230.29,30.32]
[1759829990442,0.72,230.32,230.29,30.32]
[1759829990654,0.72,230.31,230.29,30.32]
[1759829991356,4.34216239,230.3,230.29,30.32]
[1759829991848,5.06216239,230.3,230.29,30.32]
[1759829993444,5.06216239,230.3,230.25,0.66]
[1759829993445,5.06216239,230.3,230.22,4.34351802]
[1759829993752,5.06216239,230.3,230.2,31.67647521]
[1759829993753,7.77742576,230.3,230.21,0.66]
[1759829993929,18.63283175,230.3,230.22,30.3]
[1759829994254,3.43526337,230.29,230.22,30.96]
[1759829994867,0.72,230.28,230.22,30.96]
[1759829995036,4.3427281,230.27,230.22,30.96]
[1759829995356,5.0627281,230.27,230.23,30.96]
[1759829996565,4.3427281,230.27,230.24,0.66]
[1759829997061,15.19906916,230.28,230.23,30.3]
[1759829997438,15.91906916,230.28,230.23,30.96]
[1759829997949,15.91906916,230.28,230.24,0.66]
[1759829998336,5.06253951,230.28,230.24,0.66]
[1759829999186,0.72,230.27,230.23,30.3]
[1759829999340,0.72,230.26,230.23,30.3]
[1759829999668,4.34253951,230.28,230.23,30.3]
[1759829999669,3.43526337,230.25,230.23,30.3]
[1759829999835,0.72,230.24,230.23,30.3]
[1759830000032,2.71526337,230.26,230.23,30.3]
[1759830000355,0.72,230.25,230.23,30.3]
[1759830000530,4.34329395,230.24,230.23,30.3]
[1759830001860,5.01329395,230.24,230.23,30.3]
[1759830002063,5.01329395,230.24,230.21,30.3]
[1759830002455,4.34329395,230.24,230.21,30.96]
[1759830003855,4.34310532,230.25,230.21,30.96]
[1759830004257,4.34310532,230.25,230.22,0.66]
[1759830004652,4.34310532,230.25,230.21,30.3]
[1759830004853,4.34310532,230.25,230.21,30.96]
[1759830005063,0.67,230.26,230.22,0.66]
[1759830005271,3.38526337,230.26,230.22,0.66]
[1759830006174,7.72832752,230.26,230.22,0.66]
[1759830006777,5.01306415,230.26,230.22,0.66]
[1759830006961,7.72832752,230.26,230.22,0.66]
[1759830007962,0.67,230.25,230.21,30.3]
[1759830008159,0.67,230.25,230.21,30.96]
[1759830008857,0.67,230.25,230.21,30.3]
[1759830008858,5.01329395,230.24,230.21,30.3]
[1759830009055,5.01329395,230.24,230.15,0.66]
[1759830009056,0.67,230.23,230.15,0.66]
[1759830009255,2.71526337,230.21,230.16,30.28]
[1759830009484,3.38526337,230.21,230.17,0.66]
[1759830010287,3.38526337,230.2,230.16,30.28]
[1759830010463,0.67,230.19,230.14,0.66]
[1759830010657,20.8,230.25,230.15,30.94]
[1759830010969,25.143151,230.25,230.17,4.34461484]
[1759830011155,4.343151,230.25,230.18,0.66]
[1759830012874,4.3429167,230.26,230.19,4.34423736]
[1759830013057,20.8,230.28,230.2,30.98]
[1759830013262,0.67,230.29,230.21,0.66]
[1759830014384,0.67,230.29,230.22,4.34367127]
[1759830014576,0.67,230.29,230.23,0.66]
[1759830015187,4.34253951,230.28,230.23,0.66]
[1759830015365,4.34253951,230.28,230.24,0.66]
[1759830016384,4.34253951,230.28,230.21,4.34385995]
[1759830016704,4.34253951,230.28,230.25,0.66]
[1759830017985,5.01253951,230.28,230.23,0.66]
[1759830018295,5.01213372,230.31,230.24,0.66]
[1759830020482,5.01213372,230.31,230.25,4.34310532]
[1759830020688,5.01213372,230.31,230.26,30.32]
[1759830020883,0.67,230.3,230.26,30.98]
[1759830021587,5.01173881,230.33,230.27,0.66]
[1759830021883,5.01173881,230.33,230.27,30.96]
[1759830022090,5.01173881,230.33,230.28,0.66]
[1759830022980,0.67,230.33,230.27,34.6426036]
[1759830023187,20.8,230.34,230.29,0.66]
[1759830023375,21.47,230.34,230.3,0.66]
[1759830024288,25.81143629,230.34,230.3,0.66]
[1759830027781,25.14143629,230.34,230.3,0.66]
[1759830027991,5.01162184,230.33,230.28,5.00244419]
[1759830028290,5.01162184,230.33,230.29,0.66]
[1759830028678,4.34162184,230.33,230.27,30.3]
[1759830028891,4.34162184,230.33,230.21,33.84035991]
[1759830028892,0.67,230.32,230.22,4.34352219]
[1759830029194,2.71526337,230.29,230.22,30.3]
[1759830029382,0.67,230.28,230.22,30.96]
[1759830029578,0.67,230.3,230.23,0.66]
[1759830029977,0.67,230.3,230.24,4.34329395]
[1759830030277,0.67,230.3,230.25,0.66]
[1759830030489,0.67,230.3,230.26,0.66]
[1759830030688,4.34216412,230.3,230.24,5.00329395]
[1759830030895,5.01216412,230.3,230.24,0.66]
[1759830032590,5.01216412,230.3,230.21,4.34368863]
[1759830032800,0.69,230.29,230.21,5.00368863]
[1759830033009,0.69,230.28,230.22,30.3]
[1759830034200,4.3427281,230.27,230.22,30.3]
[1759830034498,5.0327281,230.27,230.22,30.96]
[1759830035392,0.69,230.27,230.23,0.66]
[1759830036094,4.34255623,230.28,230.24,0.66]
[1759830036282,0.69,230.27,230.22,35.30361903]
[1759830036482,0.69,230.27,230.23,0.66]
[1759830037915,5.02235094,230.29,230.24,0.69]
[1759830038117,0.68,230.28,230.24,0.69]
[1759830039088,0.68,230.27,230.22,35.33365819]
[1759830039507,0.68,230.27,230.22,34.64365819]
[1759830039703,0.68,230.27,230.23,0.69]
[1759830040422,5.02235094,230.29,230.24,0.69]
[1759830040623,5.02260647,230.28,230.24,0.69]
[1759830041002,0.68,230.27,230.22,30.99]
[1759830041904,0.68,230.27,230.23,0.69]
[1759830042728,0.68,230.33,230.24,5.0332694]
[1759830042902,21.48,230.33,230.25,0.69]
[1759830044011,0.68,230.35,230.25,0.69]
[1759830044321,4.34140835,230.34,230.26,4.3429167]
[1759830044520,5.02140835,230.34,230.27,0.69]
[1759830045520,21.48,230.36,230.27,0.69]
[1759830046216,4.44082587,230.38,230.29,20.8]
[1759830046419,5.12082587,230.38,230.3,5.03216239]
[1759830046599,0.1,230.38,230.31,0.69]
[1759830048231,5.12065725,230.38,230.31,0.69]
[1759830048410,5.12065725,230.38,230.29,20.8]
[1759830048606,0.68,230.37,230.29,0.69]
[1759830049528,1.73789987,230.36,230.26,5.03274576]
[1759830049704,0.68,230.35,230.27,0.69]
[1759830050432,4.34140835,230.34,230.27,0.69]
[1759830050603,0.68,230.33,230.27,0.69]
[1759830051005,0.68,230.33,230.21,10.85933869]
[1759830051212,0.68,230.32,230.25,0.69]
[1759830052228,4.34197386,230.31,230.25,0.69]
[1759830052628,5.02197386,230.31,230.25,0.69]
[1759830053136,1.73789987,230.34,230.25,5.03304365]
[1759830053433,0.68,230.33,230.26,0.69]
[1759830053934,4.34140835,230.34,230.26,0.69]
[1759830054142,5.02140835,230.34,230.26,0.69]
[1759830054452,5.02140835,230.34,230.26,5.03285706]
[1759830054652,0.68,230.33,230.27,0.69]
[1759830054938,0.68,230.33,230.26,5.03285706]
[1759830055142,0.68,230.32,230.26,0.69]
[1759830056318,0.68,230.32,230.26,5.0328925]
[1759830056523,4.34197386,230.31,230.26,0.69]
[1759830056825,5.02197386,230.31,230.26,0.69]
[1759830057020,5.02197386,230.31,230.23,10.85855041]
[1759830057021,5.02197386,230.31,230.25,4.34308878]
[1759830057336,5.02197386,230.31,230.26,0.69]
[1759830057638,5.02197386,230.31,230.27,0.69]
[1759830059625,4.34197386,230.31,230.23,15.20203301]
[1759830059825,5.02197386,230.31,230.24,0.69]
[1759830061833,5.02197386,230.31,230.24,5.03327225]
[1759830062035,5.02197386,230.31,230.25,0.68]
[1759830063333,5.02197386,230.31,230.25,5.02303651]
[1759830065340,4.34177699,230.33,230.26,0.68]
[1759830065521,0.69,230.32,230.26,0.68]
[1759830066950,4.34197386,230.31,230.26,0.68]
[1759830067139,0.69,230.3,230.26,0.68]
[1759830067953,0.69,230.29,230.24,0.68]
[1759830068151,4.34197386,230.31,230.21,20.8]
[1759830068152,0.69,230.28,230.23,0.68]
[1759830068375,0.69,230.28,230.21,0.68]
[1759830068650,0.69,230.28,230.19,4.34422176]
[1759830068829,0.69,230.27,230.19,4.34422176]
[1759830069032,5.0329167,230.26,230.18,5.02435433]
[1759830069230,0.69,230.25,230.18,5.02435433]
[1759830069428,0.69,230.25,230.19,0.68]
[1759830069732,0.69,230.24,230.19,0.68]
[1759830069932,0.69,230.23,230.19,0.68]
[1759830070953,0.69,230.25,230.19,0.68]
[1759830072155,0.69,230.25,230.19,5.02421268]
[1759830073166,5.03322799,230.25,230.19,5.02421268]
[1759830074256,0.69,230.24,230.19,5.02421268]
[1759830074427,0.69,230.24,230.19,4.34421268]
[1759830074633,0.69,230.25,230.2,0.68]
[1759830074838,0.69,230.24,230.2,0.68]
[1759830076340,0.69,230.27,230.2,25.82404657]
[1759830076546,0.69,230.27,230.21,0.68]
[1759830077865,0.69,230.29,230.22,4.34367127]
[1759830078066,0.69,230.34,230.23,11.55647521]
[1759830078374,0.69,230.34,230.24,0.68]
[1759830079262,5.03151152,230.34,230.25,4.34310532]
[1759830079449,5.03151152,230.34,230.26,0.68]
[1759830079849,15.8850324,230.34,230.24,20.8]
[1759830080168,0.69,230.33,230.25,0.68]
[1759830081648,4.34178534,230.32,230.25,5.02295688]
[1759830081845,0.69,230.31,230.25,5.02295688]
[1759830082653,0.69,230.31,230.26,5.02290787]
[1759830082847,5.03198038,230.31,230.27,0.68]
[1759830083059,0.69,230.3,230.23,5.02335565]
[1759830083253,0.69,230.3,230.23,25.82335565]
[1759830083463,0.69,230.3,230.24,0.68]
[1759830083660,0.69,230.3,230.22,0.68]
[1759830083965,0.69,230.3,230.2,0.68]
[1759830083966,1.73789987,230.29,230.2,0.68]
[1759830084173,0.69,230.28,230.2,0.68]
[1759830085072,4.3427281,230.27,230.2,0.68]
[1759830085369,0.69,230.26,230.2,0.68]
[1759830086281,0.69,230.26,230.19,4.34421002]
[1759830086480,0.69,230.25,230.18,0.68]
[1759830087559,0.69,230.25,230.18,5.02436196]
[1759830087760,0.69,230.25,230.19,0.68]
[1759830089078,5.03320988,230.25,230.19,0.68]
[1759830089662,1.73789987,230.24,230.16,0.68]
[1759830089974,0.69,230.23,230.16,0.68]
[1759830090676,4.34367127,230.22,230.16,0.68]
[1759830090981,6.77157114,230.22,230.14,0.68]
[1759830091358,1.73789987,230.2,230.12,0.71]
[1759830091675,0.72,230.19,230.12,0.71]
[1759830092272,0.72,230.19,230.1,5.05578647]
[1759830092456,15.20284944,230.22,230.1,5.05578647]
[1759830092457,2.45789987,230.18,230.1,5.05578647]
[1759830092657,4.34480361,230.16,230.1,5.05578647]
[1759830092853,5.06480361,230.16,230.1,5.05578647]
[1759830093075,0.72,230.16,230.1,5.05578647]
[1759830093381,0.72,230.16,230.11,0.71]
[1759830093584,0.72,230.16,230.12,0.71]
[1759830093885,0.72,230.15,230.09,0.71]
[1759830094182,6.80241074,230.18,230.09,0.71]
[1759830094380,10.85972299,230.21,230.09,0.71]
[1759830094381,6.8021214,230.2,230.09,0.71]
[1759830094678,6.0821214,230.2,230.1,4.34593654]
[1759830094878,0.72,230.19,230.11,0.71]
[1759830096296,5.06424512,230.19,230.12,4.34555883]
[1759830096484,5.06424512,230.19,230.13,0.71]
[1759830097190,0.72,230.19,230.13,0.71]
[1759830097368,24.23749091,230.22,230.13,0.71]
[1759830097572,4.34387629,230.21,230.13,0.71]
[1759830097775,0.7,230.2,230.13,0.71]
[1759830098162,0.7,230.2,230.14,4.34518119]
[1759830098364,0.7,230.2,230.15,0.67]
[1759830098565,4.34387629,230.21,230.16,0.67]
[1759830098864,5.04387629,230.21,230.14,4.34518119]
[1759830099282,5.04387629,230.21,230.15,0.67]
[1759830099578,5.04387629,230.21,230.15,5.01494178]
[1759830099579,0.7,230.21,230.15,5.01494178]
[1759830099978,0.7,230.21,230.16,0.67]
[1759830100157,5.04386373,230.21,230.16,0.67]
[1759830100787,0.7,230.2,230.15,4.34494178]
[1759830100967,0.7,230.2,230.14,4.34516631]
[1759830101171,0.7,230.2,230.15,0.67]
[1759830101484,5.04414177,230.2,230.15,0.67]
[1759830101985,4.34414177,230.2,230.15,0.67]
[1759830102183,4.34414177,230.2,230.11,10.86403567]
[1759830102184,0.7,230.2,230.16,0.67]
[1759830102391,25.14369193,230.22,230.17,0.67]
[1759830102690,25.14369193,230.22,230.11,10.86403567]
[1759830102691,0.7,230.25,230.18,0.67]
[1759830102987,4.34292996,230.26,230.18,0.67]
[1759830103292,0.7,230.27,230.18,0.67]
[1759830103670,5.04278146,230.27,230.19,4.34423736]
[1759830103879,5.04278146,230.27,230.2,0.67]
[1759830106792,0.7,230.27,230.21,4.34385995]
[1759830106994,0.7,230.27,230.21,5.01385995]
[1759830108000,20.8,230.28,230.21,4.34385995]
[1759830108187,20.8,230.28,230.22,0.67]
[1759830108393,0.7,230.31,230.22,0.67]
[1759830109492,0.7,230.31,230.23,15.20218911]
[1759830109701,0.7,230.31,230.24,0.67]
[1759830111500,0.7,230.33,230.25,4.34310532]
[1759830111688,0.7,230.33,230.26,0.67]
[1759830112710,0.7,230.34,230.27,4.3427281]
[1759830112914,0.7,230.34,230.27,5.0127281]
[1759830113388,15.19440526,230.35,230.27,5.0127281]
[1759830113587,0.7,230.34,230.27,5.0127281]
[1759830113801,5.04173367,230.33,230.27,5.0127281]
[1759830114403,0.7,230.32,230.27,5.0127281]
[1759830114613,0.7,230.31,230.27,5.0127281]
[1759830115011,0.7,230.31,230.27,0.67]
[1759830115507,0.7,230.31,230.21,13.04035991]
[1759830115508,2.71749091,230.28,230.2,0.67]
[1759830115716,2.71749091,230.25,230.17,10.85318538]
[1759830115889,2.71749091,230.23,230.16,4.34468324]
[1759830116092,0.7,230.22,230.16,4.34468324]
[1759830116994,5.04379923,230.22,230.16,4.34468324]
[1759830117195,0.7,230.22,230.16,4.34468324]
[1759830117892,0.7,230.22,230.16,5.01468324]
[1759830118108,5.04368242,230.22,230.16,5.01468324]
[1759830118419,5.04368242,230.22,230.16,0.67]
[1759830119410,5.04368242,230.22,230.17,4.34461484]
[1759830119711,0.7,230.21,230.17,4.34461484]
[1759830120896,0.7,230.21,230.16,4.34480361]
[1759830121097,0.7,230.21,230.17,0.67]
[1759830121292,5.04390475,230.21,230.17,0.67]
[1759830121517,0.66,230.2,230.15,21.52]
[1759830122022,0.66,230.2,230.16,0.72]
[1759830122923,0.66,230.2,230.14,0.72]
[1759830122924,4.34413322,230.2,230.14,0.72]
[1759830123104,0.66,230.19,230.12,4.34539038]
[1759830123303,0.66,230.18,230.12,5.06539038]
[1759830123520,0.66,230.17,230.12,0.72]
[1759830124829,4.3444261,230.18,230.12,0.72]
[1759830125006,4.3444261,230.18,230.11,20.8]
[1759830125007,0.66,230.16,230.11,20.8]
[1759830125320,0.66,230.16,230.12,0.72]
[1759830125820,0.66,230.16,230.11,20.8]
[1759830125821,0.66,230.18,230.13,0.72]
[1759830126023,0.66,230.18,230.11,20.8]
[1759830126024,0.66,230.17,230.11,21.52]
[1759830126513,2.71749091,230.18,230.11,21.52]
[1759830126712,2.71749091,230.16,230.09,0.72]
[1759830127015,7.06229452,230.16,230.09,0.72]
[1759830127215,7.72229452,230.16,230.09,0.72]
[1759830128214,5.00480361,230.16,230.09,5.06612408]
[1759830128417,0.66,230.15,230.09,5.06612408]
[1759830129421,5.00509397,230.15,230.09,5.06612408]
[1759830130031,0.66,230.15,230.1,0.72]
[1759830130338,0.66,230.15,230.09,4.34612408]
[1759830130339,20.8,230.2,230.11,0.72]
[1759830130535,2.71749091,230.17,230.09,5.06612408]
[1759830130712,0.66,230.16,230.09,5.06612408]
[1759830130915,0.66,230.16,230.1,0.72]
[1759830131526,0.66,230.16,230.11,4.34574768]
[1759830131730,0.66,230.16,230.11,5.06574768]
[1759830131928,0.66,230.19,230.12,0.72]
[1759830132124,25.80401379,230.21,230.12,0.72]
[1759830132328,28.5215047,230.21,230.12,0.72]
[1759830133135,28.5215047,230.21,230.13,4.34537]
[1759830133314,0.66,230.2,230.13,5.06537]
[1759830134342,5.00417867,230.2,230.13,5.06537]
[1759830135622,5.00417867,230.2,230.14,0.72]
[1759830135821,0.66,230.2,230.14,0.72]
[1759830137147,0.66,230.2,230.15,4.34499239]
[1759830137336,0.66,230.2,230.16,0.72]
[1759830138056,25.14389197,230.21,230.15,4.34499239]
[1759830138057,20.8,230.21,230.15,4.34499239]
[1759830138226,20.8,230.21,230.17,0.72]
[1759830138654,20.8,230.21,230.15,4.34499239]
[1759830138826,21.46,230.21,230.15,5.06499239]
[1759830139250,25.80395053,230.21,230.15,5.06499239]
[1759830139750,0.66,230.2,230.15,0.72]
[1759830139952,3.37749091,230.19,230.11,5.06574768]
[1759830140135,25.14395053,230.21,230.09,0.72]
[1759830140136,2.71749091,230.17,230.09,0.72]
[1759830140341,2.71749091,230.15,230.07,0.72]
[1759830140525,3.37749091,230.14,230.07,0.72]
[1759830141048,0.66,230.14,230.06,4.54666914]
[1759830141268,4.34555883,230.12,230.06,4.54666914]
[1759830141427,3.37749091,230.13,230.06,4.54666914]
[1759830141628,0.66,230.13,230.06,4.54666914]
[1759830141941,0.66,230.13,230.07,0.72]
[1759830143646,5.00543422,230.13,230.07,5.06649187]
[1759830144354,0.66,230.13,230.07,5.06649187]
[1759830145051,27.86246292,230.16,230.08,0.72]
[1759830145469,28.52246292,230.16,230.08,0.72]
[1759830145765,0.66,230.18,230.09,4.34612542]
[1759830145933,0.66,230.18,230.1,0.72]
[1759830146258,5.00404865,230.2,230.1,0.72]
[1759830146565,0.66,230.21,230.11,10.87647521]
[1759830146731,0.66,230.21,230.12,0.72]
[1759830147131,21.46,230.21,230.12,0.72]
[1759830148053,10.85668085,230.28,230.13,15.20879502]
[1759830148237,0.66,230.24,230.14,11.59647521]
[1759830148436,0.66,230.24,230.15,0.72]
[1759830148942,0.66,230.27,230.16,10.87647521]
[1759830149147,10.85525674,230.31,230.16,10.87647521]
[1759830149148,4.34216239,230.3,230.17,0.72]
[1759830149327,0.66,230.29,230.17,0.72]
[1759830150156,4.34253951,230.28,230.18,15.20549135]
[1759830150455,4.34253951,230.28,230.19,0.72]
[1759830150828,0.66,230.27,230.19,0.72]
[1759830151231,0.66,230.27,230.2,4.34404865]
[1759830151456,0.66,230.27,230.2,5.04404865]
[1759830151658,0.66,230.27,230.21,0.7]
[1759830154270,0.66,230.27,230.22,4.34367127]
[1759830154468,4.34253951,230.28,230.22,5.04367127]
[1759830154673,0.7,230.27,230.22,5.04367127]
[1759830154975,4.34253951,230.28,230.2,4.34399732]
[1759830154976,0.7,230.26,230.2,4.34399732]
[1759830155276,0.7,230.26,230.19,0.7]
[1759830155277,0.7,230.25,230.17,9.38715435]
[1759830155470,6.08055017,230.28,230.18,0.7]
[1759830155788,0.7,230.27,230.18,0.7]
[1759830156160,5.04287073,230.27,230.19,4.34423736]
[1759830156367,0.7,230.26,230.19,4.34423736]
[1759830156567,0.7,230.27,230.2,0.7]
[1759830158191,6.08111598,230.25,230.06,5.05943292]
[1759830158362,2.43801066,230.24,230.15,0.67]
[1759830159289,4.3434826,230.23,230.15,0.67]
[1759830159472,5.0434826,230.23,230.15,0.67]
[1759830160185,5.0434826,230.23,230.16,4.34480361]
[1759830160386,5.0434826,230.23,230.16,0.67]
[1759830160595,1.73801066,230.25,230.17,10.87647521]
[1759830160596,5.04316098,230.25,230.17,10.87647521]
[1759830160782,0.7,230.25,230.18,0.67]
[1759830160966,5.04283901,230.27,230.18,0.67]
[1759830161166,0.7,230.27,230.19,10.87647521]
[1759830161472,0.7,230.28,230.2,0.67]
[1759830162785,5.04262643,230.28,230.21,4.34385995]
[1759830162980,4.34262643,230.28,230.21,4.34385995]
[1759830163167,0.7,230.27,230.21,4.34385995]
[1759830163482,0.7,230.27,230.21,5.01385995]
[1759830165185,4.3429167,230.26,230.21,0.67]
[1759830165388,6.78092736,230.26,230.18,4.34425094]
[1759830165691,0.7,230.25,230.18,4.34425094]
[1759830165996,0.7,230.24,230.18,4.34425094]
[1759830166189,0.7,230.23,230.18,4.34425094]
[1759830166372,0.7,230.23,230.18,5.01425094]
[1759830166563,0.7,230.25,230.19,0.67]
[1759830167987,0.7,230.25,230.2,4.34404865]
[1759830168197,0.7,230.24,230.2,4.34404865]
[1759830168374,0.7,230.24,230.19,0.67]
[1759830169083,0.7,230.23,230.17,0.67]
[1759830170186,0.7,230.23,230.17,5.01442789]
[1759830171090,0.7,230.23,230.14,15.21957166]
[1759830171091,0.7,230.22,230.14,5.01309645]
[1759830171294,0.7,230.21,230.14,0.67]
[1759830171990,0.7,230.21,230.14,5.0151361]
[1759830173003,4.34404865,230.2,230.14,5.0151361]
[1759830173183,0.7,230.21,230.15,0.67]
[1759830173372,5.04366169,230.23,230.15,0.67]
[1759830174679,15.9023682,230.23,230.15,0.67]
[1759830174996,15.9023682,230.23,230.15,5.01491536]
[1759830174997,17.64037886,230.23,230.15,5.01491536]
[1759830175197,0.7,230.22,230.15,5.01491536]
[1759830175571,0.7,230.21,230.15,5.01491536]
[1759830176198,4.34404865,230.2,230.15,5.01491536]
[1759830176406,5.04404865,230.2,230.15,0.67]
[1759830176609,1.73801066,230.18,230.1,13.04659809]
[1759830176777,1.73801066,230.17,230.09,5.01611223]
[1759830176977,0.7,230.16,230.09,0.67]
[1759830178203,4.34499239,230.15,230.09,5.01612514]
[1759830179916,0.7,230.14,230.07,0.67]
[1759830181294,0.7,230.14,230.07,5.01637784]
[1759830181599,0.69,230.16,230.08,0.71]
[1759830181998,1.73801066,230.15,230.07,4.34637784]
[1759830182179,0.69,230.14,230.07,5.05637784]
[1759830182507,21.49,230.14,230.07,0.71]
[1759830183191,4.34537,230.13,230.07,0.71]
[1759830183404,0.69,230.12,230.07,0.71]
[1759830183584,0.69,230.11,230.07,0.71]
[1759830183988,0.69,230.1,230.06,0.2]
[1759830184198,0.69,230.09,230.06,0.2]
[1759830184691,0.69,230.11,230.06,0.91]
[1759830184891,0.69,230.11,230.06,5.25668022]
[1759830185087,0.69,230.11,230.07,0.71]
[1759830185401,5.03575631,230.11,230.07,0.71]
[1759830185779,5.03556538,230.12,230.07,0.71]
[1759830185980,0.69,230.11,230.07,0.71]
[1759830186191,1.73801066,230.13,230.06,4.54668845]
[1759830186396,21.49,230.16,230.08,0.71]
[1759830187208,25.83480361,230.16,230.08,0.71]
[1759830187391,25.83480361,230.16,230.09,4.34612542]
[1759830187593,25.14480361,230.16,230.09,5.05612542]
[1759830187816,0.69,230.15,230.09,5.05612542]
[1759830188592,0.69,230.15,230.09,0.71]
[1759830188796,0.69,230.14,230.07,0.71]
[1759830188989,0.69,230.14,230.06,4.54667561]
[1759830189197,0.69,230.13,230.06,4.54667561]
[1759830189404,0.69,230.12,230.06,4.54667561]
[1759830189709,4.34518119,230.14,230.06,5.25667561]
[1759830189887,4.34518119,230.14,230.07,0.71]
[1759830190581,5.03518119,230.14,230.07,0.71]
[1759830190783,25.14496988,230.16,230.07,0.71]
[1759830191381,25.83496988,230.16,230.08,4.34631432]
[1759830191578,0.69,230.15,230.07,4.34648514]
[1759830191885,0.69,230.14,230.07,4.34648514]
[1759830192090,0.69,230.13,230.07,5.05648514]
[1759830192913,0.69,230.12,230.07,0.71]
[1759830193509,0.69,230.11,230.07,5.05643434]
[1759830193712,4.34518119,230.14,230.07,5.05643434]
[1759830193713,5.03518119,230.14,230.08,0.71]
[1759830195310,5.03518119,230.14,230.08,5.05618302]
[1759830195817,5.03518119,230.14,230.09,0.71]
[1759830195991,6.08299488,230.16,230.1,0.71]
[1759830196191,27.57299488,230.16,230.1,0.71]
[1759830196909,27.57299488,230.16,230.08,5.05618302]
[1759830197115,5.03510777,230.15,230.08,5.05618302]